fUSD/lending_fUSD_20250120
["ID","MTS","AMOUNT","RATE_DAILY","PERIOD"]
[349637884,1737342636927,-500.0,0.00021195,2]
[349637885,1737342636937,-500.0,0.00021195,2]
[349637886,1737342636946,-500.0,0.00021195,2]
[349637887,1737342636955,-500.0,0.00021195,2]
[349637888,1737342636965,-502.8957401,0.00021195,2]
[349637889,1737342636975,-515.97825445,0.00021195,2]
[349637890,1737342636984,-500.0,0.00021195,2]
[349637891,1737342636993,-532.46399046,0.00021195,2]
[349637892,1737342637003,-3550.51,0.00021195,2]
[349637893,1737342637012,-571.27,0.00021195,2]
[349637894,1737342637022,-508.57359233,0.00021195,2]
[349637895,1737342637032,-500.0,0.00021195,2]
[349637896,1737342637041,-500.0,0.00021195,2]
[349637897,1737342637051,-500.0,0.00021195,2]
[349637898,1737342637060,-500.0,0.00021195,2]
[349637899,1737342637069,-510.82374487,0.00021195,2]
[349637900,1737342637079,-1308.71,0.00021195,2]
[349637901,1737342637087,-500.0,0.00021195,2]
[349637902,1737342637097,-503.29913564,0.00021195,2]
[349637903,1737342637106,-500.0,0.00021195,2]
[349637904,1737342637116,-1940.99,0.00021195,2]
[349637905,1737342637125,-500.0,0.00021195,2]
[349637906,1737342637134,-500.0,0.00021195,2]
[349637907,1737342637143,-4631.06,0.00021195,2]
[349637908,1737342637153,-500.0,0.00021195,2]
[349637909,1737342637162,-538.22818204,0.00021195,2]
[349637910,1737342637171,-500.0,0.00021195,2]
[349637911,1737342637181,-505.52769543,0.00021195,2]
[349637912,1737342637191,-2003.5,0.00021195,2]
[349637913,1737342637200,-503.4276432,0.00021195,2]
[349637914,1737342637212,-3405.1,0.00021195,2]
[349637915,1737342637222,-500.0,0.00021195,2]
[349637916,1737342637232,-500.0,0.00021195,2]
[349637917,1737342637242,-3711.15,0.00021195,2]
[349637918,1737342637252,-500.0,0.00021195,2]
[349637919,1737342637262,-500.0,0.00021195,2]
[349637920,1737342637272,-500.0,0.00021195,2]
[349637921,1737342637281,-251.69143005,0.00021195,2]
[349637922,1737342637290,-8929.31,0.00021195,2]
[349637923,1737342637299,-500.0,0.00021195,2]
[349637924,1737342637308,-500.0,0.00021195,2]
[349637925,1737342637318,-500.0,0.00021196,2]
[349637926,1737342637328,-500.0,0.00021196,2]
[349637927,1737342637338,-500.0,0.00021196,2]
[349637928,1737342637347,-500.0,0.00021196,2]
[349637929,1737342637359,-500.0,0.00021196,2]
[349637930,1737342637369,-500.0,0.00021196,2]
[349637931,1737342637379,-500.0,0.00021196,2]
[349637932,1737342637388,-190.05170647,0.00021196,2]
[349637933,1737342637399,-500.0,0.00021196,2]
[349637935,1737342637408,-500.0,0.00021196,2]
[349637938,1737342637419,-500.0,0.00021196,2]
[349637940,1737342637429,-500.0,0.00021196,2]
[349637942,1737342637440,-500.0,0.00021196,2]
[349637944,1737342637450,-500.0,0.00021196,2]
[349637945,1737342637461,-500.0,0.00021196,2]
[349637946,1737342637472,-748.07,0.00021196,2]
[349637947,1737342637482,-586.62610689,0.00021196,2]
[349637948,1737342637493,-505.23396761,0.00021196,2]
[349637949,1737342637503,-500.0,0.00021196,2]
[349637950,1737342637513,-500.0,0.00021196,2]
[349637951,1737342637522,-500.0,0.00021196,2]
[349637952,1737342637532,-500.0,0.00021196,2]
[349637953,1737342637542,-500.0,0.00021196,2]
[349637954,1737342637552,-500.0,0.00021196,2]
[349637955,1737342637562,-1059.07,0.00021196,2]
[349637956,1737342637572,-500.0,0.00021196,2]
[349637957,1737342637582,-502.60233777,0.00021196,2]
[349637958,1737342637591,-500.0,0.00021196,2]
[349637959,1737342637602,-500.0,0.00021196,2]
[349637960,1737342637612,-500.0,0.00021196,2]
[349637961,1737342637622,-500.0,0.00021196,2]
[349637962,1737342637632,-500.0,0.00021196,2]
[349637963,1737342637641,-500.0,0.00021196,2]
[349637964,1737342637652,-523.35,0.00021196,2]
[349637965,1737342637662,-500.0,0.00021196,2]
[349637966,1737342637671,-500.0,0.00021196,2]
[349637967,1737342637681,-500.0,0.00021196,2]
[349637968,1737342637691,-969.18,0.00021196,2]
[349637969,1737342637700,-500.0,0.00021196,2]
[349637970,1737342637710,-500.0,0.00021196,2]
[349637971,1737342637719,-501.01,0.00021196,2]
[349637972,1737342637729,-500.0,0.00021196,2]
[349637973,1737342637738,-1056.45,0.00021196,2]
[349637974,1737342637748,-500.0,0.00021196,2]
[349637975,1737342637757,-1096.57,0.00021196,2]
[349637976,1737342637766,-568.82,0.00021196,2]
[349637977,1737342637776,-500.0,0.00021196,2]
[349637978,1737342637786,-500.0,0.00021196,2]
[349637979,1737342637795,-815.86,0.00021196,2]
[349637980,1737342637805,-506.31351827,0.00021196,2]
[349637981,1737342637815,-500.0,0.00021196,2]
[349637982,1737342637824,-500.0,0.00021196,2]
[349637983,1737342637834,-500.0,0.00021196,2]
[349637984,1737342637843,-959.87,0.00021196,2]
[349637985,1737342637855,-500.0,0.00021196,2]
[349637986,1737342637864,-500.0,0.00021196,2]
[349637987,1737342637874,-500.0,0.00021196,2]
[349637988,1737342637884,-500.0,0.00021196,2]
[349637989,1737342637895,-1305.7,0.00021196,2]
[349637990,1737342637905,-500.0,0.00021196,2]
[349637991,1737342637914,-508.58804515,0.00021196,2]
[349637992,1737342637924,-500.0,0.00021196,2]
[349637993,1737342637933,-500.0,0.00021196,2]
[349637995,1737342637942,-500.0,0.00021196,2]
[349637997,1737342637951,-500.0,0.00021196,2]
[349637999,1737342637960,-500.0,0.00021196,2]
[349638001,1737342637969,-500.0,0.00021196,2]
[349638002,1737342637979,-500.0,0.00021196,2]
[349638003,1737342637989,-500.0,0.00021196,2]
[349638004,1737342637999,-1481.37,0.00021196,2]
[349638005,1737342638009,-341.44117108,0.00021196,2]
[349638006,1737342638018,-500.0,0.00021196,2]
[349638007,1737342638029,-993.82,0.00021196,2]
[349638008,1737342638039,-500.0,0.00021196,2]
[349638009,1737342638049,-500.0,0.00021196,2]
[349638010,1737342638059,-508.28284921,0.00021196,2]
[349638011,1737342638068,-2285.32,0.00021196,2]
[349638012,1737342638077,-500.0,0.00021196,2]
[349638013,1737342638086,-500.0,0.00021196,2]
[349638021,1737342638229,-506.28754547,0.00021196,2]
[349638024,1737342638261,-500.0,0.00021196,2]
[349638026,1737342638271,-500.0,0.00021196,2]
[349638028,1737342638281,-508.01532788,0.00021196,2]
[349638030,1737342638290,-500.0,0.00021196,2]
[349638032,1737342638300,-500.0,0.00021196,2]
[349638034,1737342638310,-500.0,0.00021196,2]
[349638036,1737342638319,-500.0,0.00021196,2]
[349638038,1737342638329,-500.0,0.00021196,2]
[349638040,1737342638339,-500.0,0.00021196,2]
[349638042,1737342638348,-500.0,0.00021196,2]
[349638043,1737342638361,-500.0,0.00021196,2]
[349638045,1737342638371,-500.0,0.00021196,2]
[349638047,1737342638380,-500.0,0.00021196,2]
[349638049,1737342638393,-500.0,0.00021196,2]
[349638051,1737342638404,-500.0,0.00021196,2]
[349638053,1737342638414,-504.75174219,0.00021196,2]
[349638054,1737342638423,-500.0,0.00021196,2]
[349638056,1737342638434,-500.0,0.00021196,2]
[349638059,1737342638444,-150.0,0.00021196,2]
[349638060,1737342638455,-500.0,0.00021196,2]
[349638062,1737342638465,-502.03621529,0.00021196,2]
[349638064,1737342638474,-5000.0,0.00021196,2]
[349638066,1737342638483,-500.0,0.00021196,2]
[349638068,1737342638493,-168.53841136,0.00021196,2]
[349638070,1737342638503,-500.0,0.00021196,2]
[349638072,1737342638513,-500.0,0.00021196,2]
[349638074,1737342638523,-500.0,0.00021196,2]
[349638076,1737342638533,-167.85622545,0.00021196,2]
[349638078,1737342638542,-500.0,0.00021196,2]
[349638080,1737342638552,-500.0,0.00021196,2]
[349638081,1737342638562,-618.42,0.00021196,2]
[349638083,1737342638572,-500.0,0.00021196,2]
[349638085,1737342638583,-500.0,0.00021196,2]
[349638087,1737342638593,-892.0,0.00021196,2]
[349638089,1737342638603,-2008.6,0.00021196,2]
[349638091,1737342638613,-5620.13,0.00021196,2]
[349638093,1737342638625,-964.66,0.00021196,2]
[349638095,1737342638636,-2634.92,0.00021196,2]
[349638098,1737342638646,-3328.77,0.00021196,2]
[349638100,1737342638657,-4550.1,0.00021196,2]
[349638101,1737342638666,-1575.45,0.00021196,2]
[349638103,1737342638677,-1216.87,0.00021196,2]
[349638105,1737342638688,-621.58,0.00021196,2]
[349638107,1737342638698,-6710.95,0.00021196,2]
[349638109,1737342638709,-2761.09,0.00021196,2]
[349638111,1737342638720,-241.5261563,0.00021197,2]
[349638113,1737342638730,-2000.0,0.000212,7]
[349638115,1737342638740,-629.34,0.00021273,2]
[349638117,1737342638750,-500.0,0.00021273,2]
[349638119,1737342638760,-2182.22,0.00021273,2]
[349638121,1737342638769,-799.69,0.00021273,2]
[349638123,1737342638779,-1204.09,0.00021273,2]
[349638125,1737342638788,-567.88,0.00021273,2]
[349638127,1737342638798,-952.83,0.00021273,2]
[349638129,1737342638808,-1683.62,0.00021273,2]
[349638131,1737342638817,-1996.39,0.00021273,2]
[349638133,1737342638826,-1125.05,0.00021273,2]
[349638135,1737342638836,-1410.74,0.00021273,2]
[349638137,1737342638846,-516.04082097,0.00021273,2]
[349638139,1737342638855,-990.65,0.00021273,2]
[349638141,1737342638864,-1843.66,0.00021273,2]
[349638143,1737342638873,-862.95,0.00021273,2]
[349638145,1737342638883,-602.3,0.00021273,2]
[349638147,1737342638893,-500.0,0.00021273,2]
[349638149,1737342638902,-527.17,0.00021273,2]
[349638150,1737342638912,-500.0,0.00021273,2]
[349638152,1737342638921,-500.0,0.00021273,2]
[349638154,1737342638931,-522.54,0.00021273,2]
[349638156,1737342638940,-500.0,0.00021273,2]
[349638158,1737342638950,-847.91,0.00021273,2]
[349638160,1737342638959,-512.12,0.00021273,2]
[349638162,1737342638970,-513.45,0.00021273,2]
[349638164,1737342638979,-2206.18,0.00021273,2]
[349638166,1737342638990,-2712.16,0.00021273,2]
[349638168,1737342638999,-3034.96,0.00021273,2]
[349638170,1737342639009,-500.0,0.00021273,2]
[349638172,1737342639019,-1029.27,0.00021273,2]
[349638174,1737342639030,-547.8,0.00021273,2]
[349638176,1737342639039,-500.0,0.00021273,2]
[349638178,1737342639049,-1082.17,0.00021273,2]
[349638180,1737342639059,-937.92,0.00021273,2]
[349638182,1737342639068,-2021.67,0.00021273,2]
[349638184,1737342639077,-1659.96,0.00021273,2]
[349638186,1737342639087,-2033.55,0.00021273,2]
[349638188,1737342639097,-2192.85,0.00021273,2]
[349638190,1737342639107,-626.24376459,0.00021273,2]
[349638192,1737342639116,-500.0,0.00021273,2]
[349638194,1737342639125,-1223.4,0.00021273,2]
[349638196,1737342639135,-602.59,0.00021273,2]
[349638198,1737342639144,-961.69,0.00021273,2]
[349638200,1737342639153,-500.0,0.00021273,2]
[349638202,1737342639163,-607.71,0.00021273,2]
[349638204,1737342639172,-905.93,0.00021273,2]
[349638206,1737342639182,-1645.06,0.00021273,2]
[349638208,1737342639191,-1132.66,0.00021273,2]
[349638210,1737342639200,-761.06,0.00021273,2]
[349638211,1737342639210,-924.67,0.00021273,2]
[349638213,1737342639222,-500.0,0.00021273,2]
[349638215,1737342639231,-1858.04,0.00021273,2]
[349638217,1737342639241,-900.96,0.00021273,2]
[349638219,1737342639252,-691.62,0.00021273,2]
[349638221,1737342639261,-824.77,0.00021273,2]
[349638223,1737342639271,-634.78,0.00021273,2]
[349638225,1737342639280,-500.0,0.00021273,2]
[349638227,1737342639290,-2500.0,0.000213,7]
[349638229,1737342639299,-500.0,0.00021356,2]
[349638231,1737342639309,-500.0,0.00021356,2]
[349638233,1737342639318,-500.0,0.000214,7]
[349638235,1737342639328,-150.0,0.000214,2]
[349638237,1737342639338,-152.0,0.00021419,3]
[349638239,1737342639347,-150.23,0.00021452,2]
[349638241,1737342639362,-150.0,0.00021452,2]
[349638242,1737342639371,-500.0,0.00021468,2]
[349638243,1737342639380,-500.13,0.00021468,2]
[349638244,1737342639390,-1109.24,0.00021468,2]
[349638245,1737342639402,-916.49,0.00021468,2]
[349638246,1737342639412,-238.6,0.00021468,2]
[349638247,1737342639422,-500.0,0.00021468,2]
[349638248,1737342639433,-500.0,0.00021468,2]
[349638249,1737342639444,-2440.38,0.00021468,2]
[349638250,1737342639453,-609.52,0.00021468,2]
[349638251,1737342639464,-294.49,0.00021468,2]
[349638253,1737342639474,-187.59,0.00021468,2]
[349638255,1737342639484,-500.0,0.00021468,2]
[349638256,1737342639493,-500.0,0.00021468,2]
[349638257,1737342639504,-500.0,0.00021468,2]
[349638258,1737342639514,-1055.76,0.00021468,2]
[349638260,1737342639523,-500.0,0.00021468,2]
[349638261,1737342639533,-1211.17,0.00021468,2]
[349638262,1737342639542,-1953.32,0.00021468,2]
[349638263,1737342639552,-523.78,0.00021468,2]
[349638264,1737342639562,-1223.59,0.00021468,2]
[349638265,1737342639572,-213.57,0.00021468,2]
[349638266,1737342639582,-2669.11,0.00021468,2]
[349638267,1737342639592,-500.0,0.00021468,2]
[349638268,1737342639602,-613.79,0.00021468,2]
[349638269,1737342639611,-500.0,0.00021468,2]
[349638270,1737342639621,-3344.36,0.00021468,2]
[349638271,1737342639630,-1544.24,0.00021468,2]
[349638272,1737342639640,-500.0,0.00021468,2]
[349638273,1737342639650,-3262.96,0.00021468,2]
[349638274,1737342639659,-786.83,0.00021468,2]
[349638275,1737342639669,-1260.71,0.00021468,2]
[349638276,1737342639679,-500.0,0.00021469,2]
[349638277,1737342639689,-645.76571302,0.00021469,2]
[349638278,1737342639699,-1189.66,0.00021469,2]
[349638279,1737342639708,-500.0,0.00021469,2]
[349638280,1737342639719,-500.0,0.00021469,2]
[349638281,1737342639728,-531.79351527,0.00021469,2]
[349638282,1737342639738,-500.0,0.00021469,2]
[349638283,1737342639747,-500.0,0.00021469,2]
[349638284,1737342639757,-500.0,0.00021469,2]
[349638285,1737342639766,-976.01,0.00021469,2]
[349638286,1737342639776,-500.0,0.00021469,2]
[349638287,1737342639785,-500.0,0.00021469,2]
[349638288,1737342639795,-500.0,0.00021469,2]
[349638289,1737342639804,-811.83,0.00021469,2]
[349638290,1737342639815,-500.0,0.00021469,2]
[349638291,1737342639825,-500.0,0.00021469,2]
[349638292,1737342639835,-500.0,0.00021469,2]
[349638293,1737342639848,-584.35,0.00021469,2]
[349638294,1737342639859,-500.0,0.00021469,2]
[349638295,1737342639868,-500.0,0.00021469,2]
[349638296,1737342639877,-500.0,0.00021469,2]
[349638297,1737342639888,-187.00784834,0.00021469,2]
[349638298,1737342639898,-500.0,0.00021469,2]
[349638299,1737342639908,-500.0,0.00021469,2]
[349638300,1737342639918,-349.3100346,0.00021469,2]
[349638301,1737342639927,-522.3424063,0.00021469,2]
[349638302,1737342639938,-1467.34,0.00021469,2]
[349638303,1737342639947,-545.8,0.00021469,2]
[349638304,1737342639957,-500.0,0.00021469,2]
[349638305,1737342639968,-590.92,0.00021469,2]
[349638306,1737342639978,-945.09,0.00021469,2]
[349638307,1737342639988,-1296.15,0.00021469,2]
[349638308,1737342639998,-500.0,0.00021469,2]
[349638309,1737342640008,-511.51167195,0.00021469,2]
[349638310,1737342640018,-500.0,0.00021469,2]
[349638311,1737342640027,-500.0,0.00021469,2]
[349638312,1737342640037,-1415.53,0.00021469,2]
[349638313,1737342640046,-500.0,0.00021469,2]
[349638314,1737342640056,-500.0,0.00021469,2]
[349638315,1737342640066,-200.0,0.00021469,2]
[349638316,1737342640076,-500.0,0.00021469,2]
[349638317,1737342640085,-500.0,0.00021469,2]
[349638318,1737342640095,-500.0,0.00021469,2]
[349638319,1737342640105,-500.0,0.00021469,2]
[349638320,1737342640114,-691.07,0.00021469,2]
[349638321,1737342640123,-1003.65,0.00021469,2]
[349638322,1737342640277,-500.0,0.00021469,2]
[349638323,1737342640287,-1167.836517,0.00021469,2]
[349638324,1737342640297,-932.78,0.00021469,2]
[349638325,1737342640307,-552.75,0.00021469,2]
[349638326,1737342640317,-864.15,0.00021469,2]
[349638327,1737342640326,-500.0,0.00021469,2]
[349638328,1737342640336,-730.84,0.00021469,2]
[349638329,1737342640347,-500.0,0.00021469,2]
[349638330,1737342640357,-500.0,0.00021469,2]
[349638331,1737342640371,-2122.08,0.00021469,2]
[349638332,1737342640380,-1215.900175,0.00021469,2]
[349638333,1737342640389,-1231.55,0.00021469,2]
[349638334,1737342640398,-500.0,0.00021469,2]
[349638335,1737342640407,-1804.16,0.00021469,2]
[349638336,1737342640416,-500.0,0.00021469,2]
[349638337,1737342640426,-708.55,0.00021469,2]
[349638338,1737342640436,-2126.14,0.00021469,2]
[349638339,1737342640447,-500.0,0.00021469,2]
[349638340,1737342640456,-1153.01,0.00021469,2]
[349638341,1737342640467,-928.73,0.00021469,2]
[349638342,1737342640483,-500.0,0.00021469,2]
[349638343,1737342640494,-1681.27,0.00021469,2]
[349638344,1737342640503,-808.88,0.00021469,2]
[349638345,1737342640517,-785.2,0.00021469,2]
[349638346,1737342640535,-500.0,0.00021469,2]
[349638347,1737342640544,-500.0,0.00021469,2]
[349638348,1737342640554,-981.53,0.00021469,2]
[349638349,1737342640563,-500.0,0.00021469,2]
[349638350,1737342640572,-500.0,0.00021469,2]
[349638351,1737342640582,-500.0,0.00021469,2]
[349638352,1737342640592,-500.0,0.00021469,2]
[349638353,1737342640602,-2313.08,0.00021469,2]
[349638354,1737342640612,-686.36,0.00021469,2]
[349638355,1737342640622,-1397.67,0.00021469,2]
[349638356,1737342640631,-576.9,0.00021469,2]
[349638357,1737342640642,-500.0,0.00021469,2]
[349638358,1737342640652,-1853.59,0.00021469,2]
[349638359,1737342640662,-500.0,0.00021469,2]
[349638360,1737342640672,-500.0,0.00021469,2]
[349638361,1737342640681,-500.0,0.00021469,2]
[349638362,1737342640691,-500.0,0.00021469,2]
[349638363,1737342640701,-813.6,0.00021469,2]
[349638364,1737342640711,-1856.53,0.00021469,2]
[349638365,1737342640723,-500.0,0.00021469,2]
[349638366,1737342640733,-1779.35,0.00021469,2]
[349638367,1737342640742,-500.0,0.00021469,2]
[349638368,1737342640752,-501.02885426,0.00021469,2]
[349638369,1737342640762,-500.0,0.00021469,2]
[349638370,1737342640772,-1387.29,0.00021469,2]
[349638371,1737342640781,-500.0,0.00021469,2]
[349638372,1737342640791,-1719.63,0.00021469,2]
[349638373,1737342640801,-737.19,0.00021469,2]
[349638374,1737342640812,-2555.42,0.00021469,2]
[349638375,1737342640824,-1791.44,0.00021469,2]
[349638376,1737342640834,-500.0,0.00021469,2]
[349638377,1737342640843,-1924.61,0.00021469,2]
[349638378,1737342640854,-562.1903526,0.00021469,2]
[349638379,1737342640864,-515.08943661,0.00021469,2]
[349638380,1737342640874,-346.22454644,0.00021469,2]
[349638381,1737342640883,-500.0,0.00021469,2]
[349638382,1737342640892,-1055.24,0.00021469,2]
[349638383,1737342640902,-500.0,0.00021469,2]
[349638384,1737342640912,-8350.22,0.00021469,2]
[349638385,1737342640921,-526.64646027,0.00021469,2]
[349638386,1737342640931,-500.0,0.00021469,2]
[349638387,1737342640941,-826.36,0.00021469,2]
[349638388,1737342640952,-243.68634176,0.00021469,2]
[349638389,1737342640963,-902.28,0.00021469,2]
[349638390,1737342640974,-1366.78,0.00021469,2]
[349638391,1737342640983,-500.0,0.00021469,2]
[349638392,1737342640992,-940.59,0.00021469,2]
[349638393,1737342641002,-531.84094822,0.00021469,2]
[349638394,1737342641011,-2226.73,0.00021469,2]
[349638395,1737342641021,-500.0,0.00021469,2]
[349638396,1737342641031,-518.96740462,0.00021469,2]
[349638397,1737342641042,-500.0,0.00021469,2]
[349638398,1737342641053,-1454.44,0.00021469,2]
[349638399,1737342641064,-500.0,0.00021469,2]
[349638400,1737342641073,-500.0,0.00021469,2]
[349638401,1737342641082,-622.7,0.00021469,2]
[349638402,1737342641091,-510.85719608,0.00021469,2]
[349638403,1737342641100,-513.45866395,0.00021469,2]
[349638404,1737342641109,-509.34460413,0.00021469,2]
[349638405,1737342641118,-523.16022457,0.00021469,2]
[349638406,1737342641127,-3186.87,0.00021469,2]
[349638407,1737342641137,-6114.7,0.00021469,2]
[349638408,1737342641146,-500.0,0.00021469,2]
[349638409,1737342641158,-500.0,0.00021469,2]
[349638410,1737342641167,-500.0,0.00021469,2]
[349638411,1737342641176,-500.0,0.00021469,2]
[349638412,1737342641185,-500.0,0.00021469,2]
[349638413,1737342641194,-3654.74,0.00021469,2]
[349638414,1737342641203,-500.0,0.00021469,2]
[349638415,1737342641212,-1924.69,0.00021469,2]
[349638416,1737342641222,-500.0,0.00021469,2]
[349638417,1737342641232,-500.0,0.00021469,2]
[349638418,1737342641242,-500.0,0.00021469,2]
[349638419,1737342641253,-500.0,0.00021469,2]
[349638420,1737342641264,-1088.04,0.00021469,2]
[349638421,1737342641273,-500.0,0.00021469,2]
[349638422,1737342641283,-4445.58,0.00021469,2]
[349638423,1737342641292,-500.0,0.00021469,2]
[349638424,1737342641301,-500.0,0.00021469,2]
[349638425,1737342641310,-500.0,0.00021469,2]
[349638426,1737342641319,-518.25640548,0.00021469,2]
[349638427,1737342641328,-1729.89,0.00021469,2]
[349638428,1737342641337,-500.0,0.00021469,2]
[349638429,1737342641346,-500.0,0.00021469,2]
[349638430,1737342641356,-525.38662667,0.00021469,2]
[349638431,1737342641369,-500.0,0.00021469,2]
[349638432,1737342641378,-500.0,0.00021469,2]
[349638433,1737342641388,-562.85290446,0.00021469,2]
[349638434,1737342641398,-2476.89,0.00021469,2]
[349638435,1737342641407,-500.0,0.00021469,2]
[349638436,1737342641416,-500.0,0.00021469,2]
[349638437,1737342641425,-500.0,0.00021469,2]
[349638438,1737342641435,-500.0,0.00021469,2]
[349638439,1737342641444,-500.0,0.00021469,2]
[349638440,1737342641453,-1869.99,0.00021469,2]
[349638441,1737342641462,-515.19422174,0.00021469,2]
[349638442,1737342641476,-6893.63,0.00021469,2]
[349638443,1737342641486,-500.0,0.00021469,2]
[349638444,1737342641495,-510.94078003,0.00021469,2]
[349638445,1737342641504,-500.0,0.00021469,2]
[349638446,1737342641514,-500.0,0.00021469,2]
[349638447,1737342641523,-500.0,0.00021469,2]
[349638448,1737342641533,-500.0,0.00021469,2]
[349638449,1737342641542,-1167.83,0.00021469,2]
[349638450,1737342641552,-558.33571633,0.00021469,2]
[349638451,1737342641561,-758.61,0.00021469,2]
[349638452,1737342641571,-500.0,0.00021469,2]
[349638453,1737342641580,-1214.42,0.00021469,2]
[349638454,1737342641590,-530.60900309,0.00021469,2]
[349638455,1737342641599,-500.0,0.00021469,2]
[349638456,1737342641608,-2989.61,0.00021469,2]
[349638457,1737342641618,-527.87951373,0.00021469,2]
[349638458,1737342641627,-466.58159394,0.00021469,2]
[349638459,1737342641636,-1654.4,0.00021469,2]
[349638460,1737342641646,-500.0,0.00021469,2]
[349638461,1737342641655,-859.76,0.00021469,2]
[349638462,1737342641664,-500.0,0.00021469,2]
[349638463,1737342641673,-500.0,0.00021469,2]
[349638464,1737342641683,-500.0,0.00021469,2]
[349638465,1737342641692,-1297.72,0.00021469,2]
[349638466,1737342641701,-10541.35,0.00021469,2]
[349638467,1737342641711,-500.0,0.00021469,2]
[349638468,1737342641722,-500.0,0.00021469,2]
[349638469,1737342641731,-500.0,0.00021469,2]
[349638470,1737342641741,-500.0,0.00021469,2]
[349638471,1737342641751,-258.2444434,0.00021469,2]
[349638472,1737342641760,-2094.7,0.00021469,2]
[349638473,1737342641769,-518.74929788,0.00021469,2]
[349638474,1737342641779,-1478.46,0.00021469,2]
[349638475,1737342641788,-500.0,0.00021469,2]
[349638476,1737342641798,-1358.88,0.00021469,2]
[349638477,1737342641807,-500.0,0.00021469,2]
[349638478,1737342641816,-513.45714013,0.00021469,2]
[349638479,1737342641825,-521.94494801,0.00021469,2]
[349638480,1737342641834,-500.0,0.00021469,2]
[349638481,1737342641844,-500.0,0.00021469,2]
[349638482,1737342641853,-516.09264063,0.00021469,2]
[349638483,1737342641863,-512.53056353,0.00021469,2]
[349638484,1737342641872,-500.0,0.00021469,2]
[349638485,1737342641881,-500.0,0.00021469,2]
[349638486,1737342641890,-500.0,0.00021469,2]
[349638487,1737342641899,-500.0,0.00021469,2]
[349638488,1737342641908,-3550.51,0.00021469,2]
[349638489,1737342641918,-504.32622381,0.00021469,2]
[349638490,1737342641927,-500.0,0.00021469,2]
[349638491,1737342641937,-1308.71,0.00021469,2]
[349638492,1737342641949,-505.63220965,0.00021469,2]
[349638493,1737342641961,-500.0,0.00021469,2]
[349638494,1737342641973,-1940.99,0.00021469,2]
[349638495,1737342641984,-523.55120138,0.00021469,2]
[349638496,1737342641993,-500.0,0.00021469,2]
[349638497,1737342642142,-521.24708454,0.00021469,2]
[349638498,1737342642152,-4631.06,0.00021469,2]
[349638499,1737342642162,-2003.5,0.00021469,2]
[349638500,1737342642171,-3405.1,0.00021469,2]
[349638501,1737342642181,-500.0,0.00021469,2]
[349638502,1737342642190,-500.0,0.00021469,2]
[349638503,1737342642199,-3711.15,0.00021469,2]
[349638504,1737342642209,-500.0,0.00021469,2]
[349638505,1737342642221,-500.0,0.00021469,2]
[349638506,1737342642230,-8929.31,0.00021469,2]
[349638507,1737342642240,-500.0,0.00021469,2]
[349638508,1737342642249,-289.73917397,0.00021469,2]
[349638509,1737342642259,-500.0,0.0002147,2]
[349638510,1737342642268,-500.0,0.0002147,2]
[349638511,1737342642278,-500.0,0.0002147,2]